{"text_format":"1","workbook":"xlsx","n_sheets":12,"sheets":["Deckblatt","Vorbereitung Checkliste","Einreisebestimmungen","automatische Reiseübersicht","Flughafentransfer zu Hause","Hin- und Rückflug","Mobilität am Urlaubsort","Mietwagen","To_Do's","Tagesplanung","Abreise","Gesamtkosten"],"not_rendered":{"charts":0,"images":45,"macros":1,"external_links":0,"defined_names":0,"comments":0,"pivot_tables":0},"unopened":[],"bounds":{"document_bytes":16777216,"sheet_cells":100000,"rows_first":2000,"rows_last":500,"rows_between":2000,"halvings":0,"cell_chars":16384,"cell_head_chars":4096},"cells_cut":0,"cells_raw":0,"read":"whole","date_system":"1900"}

{"sheet":"Deckblatt","index":0,"n_rows":38,"n_cols":11,"rows_kept":38,"cut":false,"hidden":false,"merged":[[0,0,0,12],[37,10,37,12],[34,0,34,2],[3,1,8,10],[9,5,10,6],[11,3,14,8],[15,5,16,6],[17,2,22,9],[23,5,24,6],[25,4,27,7],[36,9,36,12],[35,9,35,12]]}
["⚠️ Bitte aktivieren Sie Makros, um das Deckblatt automatisch ausfüllen zu lassen. Alternativ klicken Sie auf den Button \"Deckblatt vorbereiten\"."]
[]
[]
[null,"Reiseplanung"]
[]
[]
[]
[]
[]
[null,null,null,null,null,"für einen"]
[]
[null,null,null,"Roadtrip / Städtereise"]
[]
[]
[]
[null,null,null,null,null,"durch / nach"]
[]
[null,null,"Reiseziel"]
[]
[]
[]
[]
[]
[null,null,null,null,null,"vom"]
[]
[null,null,null,null,"Reisezeitraum"]
[]
[]
[]
[]
[]
[]
[]
[]
["Kontakt:"]
[null,null,null,null,null,null,null,null,null,"powered by:"]
[null,null,null,null,null,null,null,null,null,"ReiseJuwelen.de"]
[null,null,null,null,null,null,null,null,null,"Version: v.0525","Stand: 05/2025"]

{"sheet":"Vorbereitung Checkliste","index":1,"n_rows":39,"n_cols":23,"rows_kept":39,"cut":false,"hidden":false,"merged":[[0,16,0,17],[1,16,1,17],[0,0,2,11],[0,12,2,15],[8,1,8,2],[8,6,8,7],[8,11,8,12],[8,16,8,17],[5,1,5,2],[5,5,5,7],[5,10,5,12],[5,15,5,17],[10,1,10,2],[10,11,10,12],[10,16,10,17],[12,1,12,2],[10,5,11,5],[10,6,11,7],[12,11,12,12],[12,16,12,17],[14,0,15,0],[14,1,15,2],[16,16,16,17],[13,6,13,7],[15,11,15,12],[14,16,14,17],[20,15,21,15],[20,16,21,17],[18,0,19,0],[18,1,19,2],[16,5,17,5],[16,6,17,7],[18,11,18,12],[20,11,20,12],[18,16,18,17],[21,0,22,0],[21,1,22,2],[19,5,20,5],[19,6,20,7],[24,1,26,2],[23,5,25,5],[23,6,25,7],[24,0,26,0],[26,16,26,17],[26,11,26,12],[23,10,23,12],[29,16,29,17],[31,1,31,2],[28,5,29,5],[28,6,29,7],[32,11,32,12],[31,16,31,17],[32,16,32,17],[29,1,29,2],[30,11,30,12],[30,16,30,17],[28,11,28,12],[33,16,33,17],[31,5,32,5],[31,6,32,7],[34,16,34,17],[35,16,35,17],[34,11,34,12],[34,5,35,5],[34,6,35,7],[37,5,38,5],[37,6,38,7],[38,11,38,12],[36,11,36,12],[33,0,34,0],[33,1,34,2],[35,11,35,12]]}
[{"$f":"(MID(CELL(\"dateiname\",A1),FIND(\"]\",CELL(\"dateiname\",A1))+1,31))","v":"Vorbereitung Checkliste"},null,null,null,null,null,null,null,null,null,null,null,null,null,null,null,"powered by:"]
[null,null,null,null,null,null,null,null,null,null,null,null,null,null,null,null,"ReiseJuwelen.de"]
[null,null,null,null,null,null,null,null,null,null,null,null,null,null,null,null,"Version: v.0525","Stand: 05/2025"]
[]
[]
[null,"allgemeines",null,null,null,"für diese Reise",null,null,null,null,"Besonderheiten Reisegebiet",null,null,null,null,"3h vor Verlassen des Hauses"]
[]
[]
[null,"Gültigkeit Ausweis prüfen",null,null,null,null,"Visum beantragen",null,null,null,null,"Klima zur Reisezeit prüfen",null,null,null,null,"Müll wegbringen",null,null,false,false,false,false]
[null,null,null,null,null,null,null,null,null,null,null,null,null,null,null,null,null,null,null,false,null,false,false]
[null,"Impfschutz auffrischen",null,null,null,null,"Reise- und Gepäckversicherung abschließen",null,null,null,null,"aktuelles Wetter prüfen",null,null,null,null,"Kühlschrank kontrollieren",null,null,false,false,false,false]
[null,null,null,null,null,null,null,null,null,null,null,null,null,null,null,null,null,null,null,null,null,null,false]
[null,"Kreditkartenlimit anpassen",null,null,null,null,null,null,null,null,null,"Regenzeit beachten",null,null,null,null,"Pflanzen gießen",null,null,false,null,null,false]
[null,null,null,null,null,null,"persönliche Medikamente",null,null,null,null,null,null,null,null,null,null,null,null,null,false,false,false]
[null,"Auslandskrankenversicherung abschließen",null,null,null,null,null,null,null,null,null,null,null,null,null,null,"Fenster schließen"]
[null,null,null,null,null,null,null,null,null,null,null,"lokale Feiertage beachten",null,null,null,null,null,null,null,null,null,null,false]
[null,null,null,null,null,null,"internat. Führerschein beantragen, falls nötig",null,null,null,null,null,null,null,null,null,"Heizung herunterdrehen",null,null,false,false,false]
[null,null,null,null,null,null,null,null,null,null,null,null,null,null,null,null,null,null,null,null,null,false]
[null,"Dauerauftrag Miete & Strom anlegen",null,null,null,null,null,null,null,null,null,"akt. politische Situation",null,null,null,null,"Router ausschalten"]
[null,null,null,null,null,null,"Straßenkarten auf Navi oder Smartphone aktualisieren",null,null,null,null,null,null,null,null,null,null,null,null,false,false]
[null,null,null,null,null,null,null,null,null,null,null,"akt. gesundheitl. Situation",null,null,null,null,"unnötige elektrische Verbraucher vom Netz nehmen"]
[null,"im Urlaubszeitraum fällige Rechnungen terminieren"]
[null,null,null,null,null,null,null,null,null,null,null,null,null,null,null,null,null,null,null,false]
[null,null,null,null,null,null,"Steckdosenadapter organisieren",null,null,null,"zum Abflug bereit",null,null,null,null,null,null,null,null,null,false]
[null,"Urlaubsversorgung Tiere und Pflanzen organisieren",null,null,null,null,null,null,null,null,null,null,null,null,null,null,null,null,null,null,null,false]
[]
[null,null,null,null,null,null,null,null,null,null,null,"Flugtickets griffbereit",null,null,null,null,"individuelle Checkliste",null,null,null,null,false,false]
[null,null,null,null,null,null,null,null,null,null,null,null,null,null,null,null,null,null,null,false,null,false,false]
[null,null,null,null,null,null,"Probeabo Streamingdienst für Musik abschließen",null,null,null,null,"Pass griffbereit",null,null,null,null,null,null,null,false,false,false,false]
[null,"Powerbank laden",null,null,null,null,null,null,null,null,null,null,null,null,null,null,null,null,null,null,null,false,false]
[null,null,null,null,null,null,null,null,null,null,null,"Kopfhörer eingepackt",null,null,null,null,null,null,null,false,null,null,false]
[null,"Gepäckschloß organisieren",null,null,null,null,"Sim-Karte Handy für Reisegebiet organisieren",null,null,null,null,null,null,null,null,null,null,null,null,null,false,false,false]
[null,null,null,null,null,null,null,null,null,null,null,"Schal oder Jacke für Flug",null,null,null,null,null,null,null,null,null,null,false]
[null,"Reiseapotheke aussortieren und auffüllen"]
[null,null,null,null,null,null,"Handyladekabel für Mietwagen mitnehmen",null,null,null,null,"Ladekabel dabei",null,null,null,null,null,null,null,null,false,false]
[]
[null,null,null,null,null,null,null,null,null,null,null,"wiederverwendbare Flasche"]
[null,null,null,null,null,null,"Handyhalterung für Mietwagen mitnehmen",null,null,null,null,null,null,null,null,null,null,null,null,null,false]
[null,null,null,null,null,null,null,null,null,null,null,"Flüssigkeiten in Reisegröße"]

{"sheet":"Einreisebestimmungen","index":2,"n_rows":47,"n_cols":14,"rows_kept":47,"cut":false,"hidden":false,"merged":[[2,8,2,9],[0,7,0,9],[1,7,1,9],[0,0,2,3],[30,2,30,3],[30,5,30,6],[8,2,8,3],[10,4,10,5],[12,2,12,3],[14,4,14,5],[22,2,22,3],[22,5,22,6],[24,2,24,3],[27,2,27,3],[27,5,27,6],[29,2,29,3],[29,5,29,6],[46,5,46,6],[32,2,32,3],[32,16,32,17],[36,2,36,4],[36,5,36,6],[43,2,43,7],[45,2,45,3],[45,5,45,6]]}
[{"$f":"(MID(CELL(\"dateiname\",A1),FIND(\"]\",CELL(\"dateiname\",A1))+1,31))","v":"Einreisebestimmungen"},null,null,null,null,null,null,"powered by:"]
[null,null,null,null,null,null,null,"ReiseJuwelen.de"]
[null,null,null,null,null,null,null,"Version: v.0525","Stand: 05/2025"]
[]
[]
[]
[]
[]
[null,null,"Personalausweis:",null,null,"gültig bis:",null,null,null,null,null,null,"Sollte dein Perso abgelaufen sein und ein neuer in der Ausfertigung"]
[]
[null,null,null,null,"Preis für einen neuen:",null,"0,00","€",null,null,null,null,"zu lange dauern, kannst du dir einen vorläufigen Perso ausstellen"]
[null,null,null,null,null,null,null,null,null,null,null,null,"lassen.","Kostenpunkt:   10€     Gültigkeit:   3 Monate"]
[null,null,"Reisepass:",null,null,"gültig bis:"]
[]
[null,null,null,null,"Preis für einen neuen:",null,"0,00","€",null,null,null,null,"Ein Express-Reisepass, den du innerhalb von 4 Tagen"]
[]
[null,null,null,null,null,null,null,null,null,null,null,null,"bekommst, kostet aktuell   92€. (Stand 06/2022)"]
[]
[]
[]
[]
[]
[null,null,"Bestimmungsland:",null,null,{"$f":"Deckblatt!C18","v":"Reiseziel"}]
[]
[null,null,"Visum erforderlich:"]
[null,null,null,null,null,"ja","nein"]
[]
[null,null,"zulässige Aufenthaltsdauer:"]
[]
[null,null,"Kosten p.P.:",null,null,0,null,"€"]
[null,null,"Gesamtkosten:",null,null,0,null,"€"]
[]
[null,null,"Onlineantrag möglich:"]
[null,null,null,null,null,"ja","nein"]
[]
[]
[null,null,"weitere Informationen findest du unter:",null,null,"VisumCentrale.de"]
[]
[]
[]
[]
[]
[]
[null,null,"Informationen über gesundheitsspezifische Einreisebestimmung"]
[]
[null,null,"COVID-19-Pandemie:",null,null,"reopen.europa.eu/de/"]
[null,null,null,null,"oder","auswaertiges-amt.de"]

{"sheet":"automatische Reiseübersicht","index":3,"n_rows":36,"n_cols":10,"rows_kept":36,"cut":false,"hidden":false,"merged":[[30,1,30,2],[22,3,22,5],[24,3,24,5],[25,3,25,5],[24,6,24,8],[25,6,25,8],[22,6,22,8],[2,9,2,10],[0,8,0,10],[1,8,1,10],[0,0,2,4],[15,3,15,5],[12,3,12,5],[8,5,8,6],[6,3,6,8],[0,5,2,6],[15,6,15,8],[12,6,12,8],[34,3,34,4],[35,3,35,4],[34,6,34,7],[35,6,35,7],[31,3,31,7],[32,3,32,7],[33,3,33,7]]}
["Reiseübersicht",null,null,null,null,null,null,null,"powered by:"]
[null,null,null,null,null,null,null,null,"ReiseJuwelen.de"]
[null,null,null,null,null,null,null,null,"Version: v.0525","Stand: 05/2025"]
[]
[]
[]
[null,"Reiseziel:",null,{"$f":"Deckblatt!C18","v":"Reiseziel"}]
[]
[null,"Anzahl der Reisenden:",null,null,null,2]
[]
[]
[null,"Flüge:"]
[null,null,null,"Hinflug",null,null,"Rückflug"]
[]
[null,null,null,{"$f":"'Hin- und Rückflug'!D6","v":"Abflugort"},null,"Ziel",{"$f":"'Hin- und Rückflug'!O6","v":"Abflugort"},null,"Ziel"]
[null,null,null,{"$f":"'Hin- und Rückflug'!D7","v":"Datum"},null,null,{"$f":"'Hin- und Rückflug'!O7","v":"Datum"}]
[null,null,null,{"$f":"'Hin- und Rückflug'!D11","v":"Abflugszeit"},null,"Uhrzeit",{"$f":"'Hin- und Rückflug'!O11","v":"Abflugszeit"},null,"Uhrzeit"]
[]
[]
[]
[]
[null,"Mietwagen:"]
[null,null,null,{"$f":"Mietwagen!D12","v":"Ort / Adresse"},null,null,{"$f":"Mietwagen!G12","v":"Ort / Adresse"}]
[]
[null,null,null,{"$f":"Mietwagen!D14","v":"Datum"},null,null,{"$f":"Mietwagen!G14","v":"Datum"}]
[null,null,null,{"$f":"Mietwagen!D17","v":"Uhrzeit"},null,null,{"$f":"Mietwagen!G17","v":"Uhrzeit"}]
[]
[]
[]
[]
[null,"1. Unterkunft:"]
[null,null,null,{"$f":"#REF!","v":{"$error":"#REF!"}}]
[null,null,null,{"$f":"#REF!","v":{"$error":"#REF!"}}]
[]
[null,null,null,{"$f":"#REF!","v":{"$error":"#REF!"}},null,null,{"$f":"#REF!","v":{"$error":"#REF!"}}]
[null,null,null,{"$f":"#REF!","v":{"$error":"#REF!"}},null,null,{"$f":"#REF!","v":{"$error":"#REF!"}}]

{"sheet":"Flughafentransfer zu Hause","index":4,"n_rows":60,"n_cols":9,"rows_kept":60,"cut":false,"hidden":false,"merged":[[35,6,35,7],[7,0,7,3],[31,2,31,3],[33,2,33,3],[27,2,27,3],[29,2,29,3],[27,4,27,5],[29,4,29,5],[10,1,10,2],[12,2,12,3],[14,2,14,3],[12,4,12,6],[14,4,14,6],[18,2,18,3],[20,2,20,3],[7,5,7,7],[22,2,22,3],[22,6,22,7],[0,7,0,8],[1,7,1,8],[0,4,2,6],[0,0,2,3],[16,4,16,5],[18,4,18,5],[16,2,16,3],[48,2,48,3],[48,6,48,7],[59,0,59,1],[59,3,59,4],[25,1,25,2],[46,2,46,3],[38,1,38,2],[31,4,31,5],[46,5,46,6],[40,4,40,6],[42,4,42,6],[44,4,44,6],[40,2,40,3],[42,2,42,3],[44,2,44,3],[35,2,35,3]]}
["Flughafentransfer",null,null,null,null,null,null,"powered by:"]
[null,null,null,null,null,null,null,"ReiseJuwelen.de"]
[null,null,null,null,null,null,null,"Version: v.0525","Stand: 05/2025"]
[]
[]
[]
[]
["Flughafentransfer zum Heimatflughafen",null,null,null,null,"Datum"]
[]
[]
[null,"parken am Flughafen"]
[]
[null,null,"Name des Parkanbieters:"]
[]
[null,null,"Kontakt Anbieter:"]
[]
[null,null,"Parkhausbezeichnung:"]
[]
[null,null,"Parkplatznummer:"]
[]
[null,null,"Gesamtkosten:",null,null,"0,00","€"]
[]
[null,null,"Kosten pro Person:",null,null,{"$f":"F21/'automatische Reiseübersicht'!F9","v":0},"€"]
[]
[]
[null,"öffentliche Verkehrsmittel"]
[]
[null,null,"Anbieter:"]
[]
[null,null,"Kontakt Anbieter:"]
[]
[null,null,"Uhrzeit Abholung:"]
[]
[null,null,"Gesamtkosten:",null,null,"0,00","€"]
[]
[null,null,"Kosten pro Person:",null,null,{"$f":"F34/'automatische Reiseübersicht'!F9","v":0},"€"]
[]
[]
[null,"privater Bringdienst"]
[]
[null,null,"Name:"]
[]
[null,null,"Kontaktnummer:"]
[]
[null,null,"Uhrzeit Abfahrt:"]
[]
[null,null,"Gesamtkosten:",null,null,"0,00",null,"€"]
[]
[null,null,"Kosten pro Person:",null,null,{"$f":"F47/'automatische Reiseübersicht'!F9","v":0},"€"]
[]
[]
[]
[]
[]
[]
[]
[]
[]
[]
["finanzielle Ausgaben:",null,null,"abgerechnet:",null,"ja   /   nein",null,"am: "]

{"sheet":"Hin- und Rückflug","index":5,"n_rows":61,"n_cols":22,"rows_kept":61,"cut":false,"hidden":false,"merged":[[45,6,45,7],[46,6,46,7],[16,4,16,6],[25,4,25,6],[34,4,34,6],[41,3,41,5],[45,3,45,5],[46,3,46,5],[42,3,42,5],[45,14,45,18],[46,14,46,18],[47,14,47,18],[7,15,7,17],[16,15,16,17],[25,15,25,17],[34,15,34,17],[0,17,2,19],[0,20,0,21],[1,20,1,21],[7,4,7,6],[44,14,44,18],[0,11,2,16],[0,9,0,10],[1,9,1,10],[0,0,2,5],[0,6,2,8],[44,3,44,5],[44,6,44,7],[60,5,60,6],[60,0,60,3],[49,3,49,5],[49,6,49,7],[53,3,53,5],[53,6,53,7]]}
["Hinflug",null,null,null,null,null,null,null,null,"powered by:",null,"Rückflug",null,null,null,null,null,null,null,null,"powered by:"]
[null,null,null,null,null,null,null,null,null,"ReiseJuwelen.de",null,null,null,null,null,null,null,null,null,null,"ReiseJuwelen.de"]
[null,null,null,null,null,null,null,null,null,"Version: v.0525","Stand: 05/2025",null,null,null,null,null,null,null,null,null,"Version: v.0525","Stand: 05/2025"]
[]
[]
[null,null,null,"Abflugort",null,null,null,"Flugnummer",null,null,null,null,null,null,"Abflugort",null,null,null,"Flugnummer"]
[null,null,null,"Datum",null,null,null,null,null,null,null,null,null,null,"Datum"]
[null,null,null,null,"Zielort",null,null,null,null,null,null,null,null,null,null,"Zielort"]
[null,null,null,null,null,"Flughafenkürzel",null,null,null,null,null,null,null,null,null,null,"Flughafenkürzel"]
[]
[null,null,null,"Abflugszeit",null,null,null,"Ankunftszeit",null,null,null,null,null,null,"Abflugszeit",null,null,null,"Ankunftszeit"]
[]
[]
[]
[null,null,null,"Abflugort",null,null,null,"Flugnummer",null,null,null,null,null,null,"Abflugort",null,null,null,"Flugnummer"]
[null,null,null,"Datum",null,null,null,null,null,null,null,null,null,null,"Datum"]
[null,null,null,null,"Zielort",null,null,null,null,null,null,null,null,null,null,"Zielort"]
[null,null,null,null,null,"Flughafenkürzel",null,null,null,null,null,null,null,null,null,null,"Flughafenkürzel"]
[]
[null,null,null,"Abflugszeit",null,null,null,"Ankunftszeit",null,null,null,null,null,null,"Abflugszeit",null,null,null,"Ankunftszeit"]
[]
[]
[]
[null,null,null,"Abflugort",null,null,null,"Flugnummer",null,null,null,null,null,null,"Abflugort",null,null,null,"Flugnummer"]
[null,null,null,"Datum",null,null,null,null,null,null,null,null,null,null,"Datum"]
[null,null,null,null,"Zielort",null,null,null,null,null,null,null,null,null,null,"Zielort"]
[null,null,null,null,null,"Flughafenkürzel",null,null,null,null,null,null,null,null,null,null,"Flughafenkürzel"]
[]
[null,null,null,"Abflugszeit",null,null,null,"Ankunftszeit",null,null,null,null,null,null,"Abflugszeit",null,null,null,"Ankunftszeit"]
[]
[]
[]
[null,null,null,"Abflugort",null,null,null,"Flugnummer",null,null,null,null,null,null,"Abflugort",null,null,null,"Flugnummer"]
[null,null,null,"Datum",null,null,null,null,null,null,null,null,null,null,"Datum"]
[null,null,null,null,"Zielort",null,null,"Zielort",null,null,null,null,null,null,null,"Zielort"]
[null,null,null,null,null,"Flughafenkürzel",null,null,null,null,null,null,null,null,null,null,"Flughafenkürzel"]
[]
[null,null,null,"Abflugszeit",null,null,null,"Ankunftszeit",null,null,null,null,null,null,"Abflugszeit",null,null,null,"Ankunftszeit"]
[]
[]
[]
[null,null,null,"Aufgabegepäck (kg)"]
[null,null,null,"Handgepäck (kg)"]
[null,null,null,null,null,null,null,null,null,null,null,null,null,null,"Anmerkung:"]
[null,null,null,"Kosten Hin- & Rückflug:",null,null,null,null,"€"]
[null,null,null,"Extrakosten für Gepäck:",null,null,null,null,"€"]
[null,null,null,"Extrakosten für Sitzplätze:",null,null,null,null,"€"]
[]
[]
[null,null,null,"Gesamtkosten:",null,null,{"$f":"G46+G47+G45","v":0},null,"€"]
[]
[]
[]
[null,null,null,"Kosten pro Person:",null,null,{"$f":"G50/'automatische Reiseübersicht'!F9","v":0},null,"€"]
[]
[]
[]
[]
[]
[]
["finanzielle Ausgaben:",null,null,null,null,"abgerechnet:",null,"ja   /   nein",null,"am: "]

{"sheet":"Mobilität am Urlaubsort","index":6,"n_rows":58,"n_cols":9,"rows_kept":58,"cut":false,"hidden":false,"merged":[[6,0,6,3],[14,2,14,3],[14,5,14,7],[16,2,16,3],[9,5,9,7],[32,3,32,5],[32,6,32,7],[34,3,34,5],[18,2,18,3],[22,1,22,3],[22,5,23,7],[36,3,36,5],[51,3,51,5],[57,0,57,1],[0,0,2,3],[6,6,6,7],[20,2,20,3],[0,7,0,8],[1,7,1,8],[0,4,2,6],[48,3,48,5],[40,6,40,7],[42,6,42,7],[44,6,44,7],[46,6,46,7],[24,1,25,3],[24,5,27,7]]}
["   Mobilität am Urlaubsort",null,null,null,null,null,null,"powered by:"]
[null,null,null,null,null,null,null,"ReiseJuwelen.de"]
[null,null,null,null,null,null,null,"Version: v.0525","Stand: 05/2025"]
[]
[]
[]
["Flughafentransfer am Urlaubsort",null,null,null,null,null,"Datum"]
[]
[]
["a)","Mietwagen",null,null,null,"Tabellenblatt \"Mietwagen\""]
[]
[]
[]
["b)","öffentliche Verkehrsmittel"]
[null,null,"Unternehmen:"]
[]
[null,null,"Linie & Abfahrtzeiten:"]
[]
[null,null,"Gesamtkosten:",null,null,null,"0,00","€"]
[]
[null,null,"Kosten pro Person:",null,null,null,{"$f":"G19/'automatische Reiseübersicht'!F9","v":0},"€"]
[]
[null,"ggf. wiederaufladbare Guthabenkarte:"]
[null,"(z.B.: Oyster Card - London, Opal Card - Sydney,…)"]
[null,"ggf. Adresse für Rückgabe und Erstattung von nicht verbrauchtem Guthaben:"]
[]
[null,"(z.B. bei Opal Card - Sydney, go card - Brisbane)"]
[]
[]
[]
[]
["c)","Taxi oder Shuttle"]
[null,null,null,"Unternehmen:"]
[]
[null,null,null,"Gesamtkosten:",null,null,"0,00","€"]
[]
[null,null,null,"Kosten pro Person:",null,null,{"$f":"G35/'automatische Reiseübersicht'!F9","v":0},"€"]
[]
[]
["d)","Hotelshuttle"]
[null,null,null,"Hinreise",null,"Treffpunkt:"]
[]
[null,null,null,null,null,"Abfahrtszeit:"]
[]
[null,null,null,"Rückreise",null,"Treffpunkt:"]
[]
[null,null,null,null,null,"Abfahrtszeit:"]
[]
[null,null,null,"Gesamtkosten:",null,null,"0,00","€"]
[]
[]
[null,null,null,"Kosten pro Person:",null,null,{"$f":"G50/'automatische Reiseübersicht'!F9","v":0},"€"]
[]
[]
[]
[]
[]
["finanzielle Ausgaben:",null,null,"abgerechnet:",null,"ja   /   nein",null,"am: "]

{"sheet":"Mietwagen","index":7,"n_rows":75,"n_cols":21,"rows_kept":75,"cut":false,"hidden":false,"merged":[[0,7,0,10],[1,7,1,10],[2,7,2,9],[0,0,2,3],[0,4,2,6],[9,18,10,18],[9,19,10,19],[11,14,12,15],[11,16,12,17],[6,0,6,1],[6,3,6,6],[7,14,7,15],[7,16,7,17],[9,3,9,4],[9,6,9,7],[9,14,10,15],[9,16,10,17],[36,19,37,19],[30,19,31,19],[13,3,14,4],[13,6,14,7],[13,18,14,18],[15,19,16,19],[17,14,18,15],[15,14,16,15],[13,19,14,19],[13,14,14,15],[13,16,14,17],[32,18,33,18],[36,16,37,17],[34,16,35,17],[32,16,33,17],[30,18,31,18],[38,18,39,18],[38,19,39,19],[40,18,41,18],[40,19,41,19],[40,14,41,15],[40,16,41,17],[38,14,39,15],[38,16,39,17],[74,2,75,6],[44,16,45,17],[43,3,44,7],[57,2,57,6],[58,2,65,6],[66,2,71,6],[72,2,73,6],[0,19,0,20],[1,19,1,20],[0,17,2,18],[0,11,2,16],[34,18,35,18],[34,19,35,19],[20,16,21,17],[32,19,33,19],[34,14,35,15],[32,14,33,15],[28,14,28,15],[15,16,16,17],[17,16,18,17],[17,18,18,18],[11,18,12,18],[11,19,12,19],[17,19,18,19],[15,18,16,18],[11,3,12,4],[11,6,12,7],[36,3,36,4],[36,6,36,7],[33,6,34,7],[31,6,31,7],[21,3,22,4],[21,7,22,7],[23,3,23,4],[24,3,24,4],[33,3,34,4],[31,3,31,4],[30,16,31,17],[36,18,37,18],[38,3,38,4],[38,6,38,7],[55,15,55,16],[16,3,17,4],[16,6,17,7],[42,14,42,15],[42,16,42,17],[33,8,34,8],[36,14,37,15],[28,16,28,17],[30,14,31,15]]}
["     Mietwagendetails",null,null,null,null,null,null,"powered by:",null,null,null,"     Mietwagendetails",null,null,null,null,null,null,null,"powered by:"]
[null,null,null,null,null,null,null,"ReiseJuwelen.de",null,null,null,null,null,null,null,null,null,null,null,"ReiseJuwelen.de"]
[null,null,null,null,null,null,null,"Version: v.0525",null,null,"Stand: 05/2025",null,null,null,null,null,null,null,null,"Version: v.0525","Stand: 05/2025"]
[]
[]
[]
["Mietwagenanbieter:",null,null,null,null,null,null,null,null,null,null,null,"Maut"]
[null,null,null,null,null,null,null,null,null,null,null,null,null,null,"Strecke",null,"Kosten [€]",null,"Zahlender","bar / Karte"]
[]
[null,null,null,"Abholung",null,null,"Rückgabe"]
[]
[null,null,null,"Ort / Adresse",null,null,"Ort / Adresse"]
[]
[null,null,null,"Datum",null,null,"Datum"]
[]
[]
[null,null,null,"Uhrzeit",null,null,"Uhrzeit"]
[]
[]
[]
[null,null,null,null,null,null,null,null,null,null,null,null,null,null,null,null,{"$f":"Q10+Q12+Q14+Q16+Q18","v":0}]
[null,null,null,"zusätzliche Versicherung nötig?",null,null,null,"ja   /   nein"]
[]
[null,null,null,"Zweitfahrer nötig?",null,null,null,"ja   /   nein"]
[null,null,null,"Tankregelung",null,null,null,"voll   -   voll"]
[]
[]
[null,null,null,null,null,null,null,null,null,null,null,null,"Benzin"]
[null,null,null,null,null,null,null,null,null,null,null,null,null,null,"Tankstelle / Ort",null,"Kosten [€]",null,"Zahlender","bar / Karte"]
[]
[]
[null,null,null,"Mietwagenkosten*:",null,null,"0,00",null,"€"]
[]
[null,null,null,"eingeplantes Benzingeld:",null,null,0,null,"€"]
[]
[]
[null,null,null,"Gesamtkosten:",null,null,"0,00",null,"€"]
[]
[null,null,null,"Kosten pro Person:",null,null,{"$f":"G37/'automatische Reiseübersicht'!F9","v":0},null,"€"]
[]
[]
[]
[]
[null,null,null,"VOUCHER AUSDRUCKEN!"]
[null,null,null,null,null,null,null,null,null,null,null,null,null,null,null,null,{"$f":"(Q31+Q33+Q37+Q39+Q41)","v":0}]
[]
[]
[]
[]
[]
[]
[]
[]
[]
[]
[null,null,null,null,null,null,null,null,null,null,null,"finanzielle Ausgaben:",null,null,null,"abgerechnet:",null,"ja   /   nein",null,"am: "]
[]
[null,null,"Hinweis in eigener Sache:"]
[null,null,"Ich nehme an dem Affiliate-Programm von billiger-mietwagen.de teil. Wenn du ReiseJuwelen.de unterstützen möchtest, dann kannst du über den Link unten direkt bei billiger-mietwagen.de buchen. Ich erhalte eine kleine Provision. Für dich entstehen keinerlei zusätzliche Kosten."]
[]
[]
[]
[]
[]
[]
[]
[null,null,"Das Geld nutze ich um die laufenden Kosten für meinen Blog zu reduzieren. Von diesem Affiliate-Programm kann ich nicht leben, es hilft nur die monatlichen Kosten zu begrenzen."]
[]
[]
[]
[]
[]
[null,null,"Vielen Dank für deine Hilfe und für das Lesen meines Blogs."]
[]
[null,null,"Affiliate-Programm von www.billiger-mietwagen.de"]

{"sheet":"To_Do's","index":8,"n_rows":26,"n_cols":18,"rows_kept":26,"cut":false,"hidden":false,"merged":[[0,5,0,6],[1,5,1,6],[0,3,2,4],[0,0,2,2],[0,13,0,14],[1,13,1,14],[0,11,2,12],[0,7,2,10],[15,1,15,4],[15,8,15,11],[7,1,7,4],[7,8,7,11],[9,1,9,4],[9,8,9,11],[11,1,11,4],[11,8,11,11],[13,1,13,4],[13,8,13,11],[23,1,23,4],[23,8,23,11],[25,1,25,4],[25,8,25,11],[17,1,17,4],[17,8,17,11],[19,1,19,4],[19,8,19,11],[21,1,21,4],[21,8,21,11]]}
["     To Do's vor Ankunft",null,null,null,null,"powered by:",null,"     To Do's vor Ort",null,null,null,null,null,"powered by:"]
[null,null,null,null,null,"ReiseJuwelen.de",null,null,null,null,null,null,null,"ReiseJuwelen.de"]
[null,null,null,null,null,"Version: v.0525","Stand: 05/2025",null,null,null,null,null,null,"Version: v.0525","Stand: 05/2025"]
[]
[]
[]
[null,null,null,null,null,null,"erledigt",null,null,null,null,null,null,"Ort","erledigt"]
[null,null,null,null,null,null,null,null,null,null,null,null,null,null,null,null,false,false]
[]
[null,null,null,null,null,null,null,null,null,null,null,null,null,null,null,null,false,false]
[]
[null,null,null,null,null,null,null,null,null,null,null,null,null,null,null,null,false,false]
[]
[null,null,null,null,null,null,null,null,null,null,null,null,null,null,null,null,false,false]
[]
[null,null,null,null,null,null,null,null,null,null,null,null,null,null,null,null,false,false]
[]
[null,null,null,null,null,null,null,null,null,null,null,null,null,null,null,null,false,false]
[]
[null,null,null,null,null,null,null,null,null,null,null,null,null,null,null,null,false,false]
[]
[null,null,null,null,null,null,null,null,null,null,null,null,null,null,null,null,false,false]
[]
[null,null,null,null,null,null,null,null,null,null,null,null,null,null,null,null,false,false]
[]
[null,null,null,null,null,null,null,null,null,null,null,null,null,null,null,null,false,false]

{"sheet":"Tagesplanung","index":9,"n_rows":45,"n_cols":46,"rows_kept":45,"cut":false,"hidden":false,"merged":[[43,3,43,7],[39,0,39,1],[40,3,40,7],[40,15,40,18],[40,24,40,26],[41,3,41,7],[42,3,42,7],[42,15,42,18],[42,24,42,26],[36,3,36,6],[36,15,36,18],[37,3,37,6],[37,23,37,24],[38,15,38,18],[38,23,38,24],[32,3,32,4],[32,15,32,18],[32,24,32,26],[34,15,34,18],[35,3,35,6],[35,21,35,22],[35,23,35,26],[29,0,29,3],[29,6,29,9],[29,40,29,41],[29,43,29,44],[30,6,30,9],[30,15,30,18],[30,24,30,26],[26,15,26,18],[27,23,27,24],[27,40,27,41],[27,43,27,44],[28,0,28,3],[28,6,28,9],[28,15,28,18],[28,23,28,24],[24,6,24,7],[24,15,24,18],[24,40,24,41],[25,2,25,4],[25,21,25,22],[25,23,25,26],[21,6,21,7],[21,40,21,41],[22,6,22,7],[22,15,22,18],[22,24,22,26],[22,40,22,41],[20,15,20,18],[20,24,20,26],[20,40,20,41],[16,40,16,41],[17,23,17,24],[17,40,17,41],[18,6,18,7],[18,23,18,24],[18,40,18,41],[11,6,11,9],[11,40,11,41],[12,6,12,9],[12,24,12,26],[12,40,12,41],[13,40,13,41],[19,6,19,7],[19,12,19,14],[19,40,19,41],[9,16,9,19],[9,40,9,41],[10,2,10,3],[10,6,10,9],[10,24,10,26],[10,40,10,41],[6,30,43,36],[6,39,6,40],[7,13,7,15],[7,16,7,19],[7,23,7,24],[8,2,8,3],[8,6,8,9],[8,16,8,19],[8,23,8,24],[8,40,8,41],[14,2,14,3],[14,6,14,9],[14,40,14,41],[15,2,15,3],[15,6,15,9],[15,21,15,22],[15,23,15,26],[15,40,15,41],[0,42,2,43],[0,44,0,46],[1,8,1,10],[1,18,1,20],[1,27,1,28],[1,35,1,37],[1,44,1,46],[2,36,2,37],[2,45,2,46],[0,21,2,24],[0,25,2,26],[0,27,0,28],[0,29,2,32],[0,33,2,34],[0,35,0,37],[0,8,0,10],[0,11,2,15],[0,16,2,17],[0,18,0,20],[4,27,4,28],[5,21,5,22],[5,23,5,26],[6,0,6,2],[6,12,6,15],[6,16,6,19],[0,0,2,4],[0,5,2,7],[0,38,2,41]]}
["Unterkunftdetails",null,null,null,null,null,null,null,"powered by:",null,null,"Aktivtitäten",null,null,null,null,null,null,"powered by:",null,null,"Planungsdetails",null,null,null,null,null,"powered by:",null,"Route",null,null,null,null,null,"powered by:",null,null,"Ausgaben",null,null,null,null,null,"powered by:"]
[null,null,null,null,null,null,null,null,"ReiseJuwelen.de",null,null,null,null,null,null,null,null,null,"ReiseJuwelen.de",null,null,null,null,null,null,null,null,"ReiseJuwelen.de",null,null,null,null,null,null,null,"ReiseJuwelen.de",null,null,null,null,null,null,null,null,"ReiseJuwelen.de"]
[null,null,null,null,null,null,null,null,null,"Version: v.0525","Stand: 05/2025",null,null,null,null,null,null,null,"Version: v.0525",null,"Stand: 05/2025",null,null,null,null,null,null,"Version: v.0525","Stand: 05/2025",null,null,null,null,null,null,"Version: v.0525","Stand: 05/2025",null,null,null,null,null,null,null,"Version: v.0525","Stand: 05/2025"]
[]
[null,null,null,null,null,null,null,null,null,null,null,null,null,null,null,null,null,null,null,null,null,null,null,null,null,null,null,"Fahrdauer bis Ziel / Aufenthaltsdauer"]
[null,null,null,null,null,null,null,"Wettervorhersage",null,"Temperaturvorhersage",null,null,null,null,null,null,null,null,null,null,null,"Zwischenstopp:"]
["Unterkunftdetails:",null,null,null,null,null,null,null,null,null,null,null,"Stopp für Lebenmittel- & Getränkekauf:",null,null,null,null,null,null,null,null,null,null,null,null,null,null,null,null,null,"Hier ist Platz für Kartenauschnitte der Route(n)",null,null,null,null,null,null,null,null,"Tagesausgaben:"]
[null,null,null,null,null,null,null,null,null,null,null,null,null,"Adresse:",null,null,null,null,null,null,null,null,null,"Öffnungszeiten:",null,null,"Uhr"]
[null,null,"Name der Unterkunft:",null,null,null,"Hotelname",null,null,null,null,null,null,null,null,null,null,null,null,null,null,null,null,"Kosten:",null,null,"€",null,null,null,null,null,null,null,null,null,null,null,null,null,"Artikelbeschreibung",null,"Betrag [€]","Zahlender","bar / Karte"]
[null,null,null,null,null,null,null,null,null,null,null,null,null,null,null,null,null,null,null,null,null,null,null,null,null,null,null,null,null,null,null,null,null,null,null,null,null,null,null,null,{"$f":"Q7","v":0},null,{"$f":"R12","v":"0,00"}]
[null,null,"Adresse:",null,null,null,"Strasse",null,null,null,null,null,null,null,null,null,null,null,null,null,null,null,null,"Sehenswertes:",null,null,null,null,null,null,null,null,null,null,null,null,null,null,null,null,{"$f":"X6","v":0},null,{"$f":"Z9","v":0}]
[null,null,null,null,null,null,"Ort",null,null,null,null,null,null,null,"Preis:",null,null,"0,00","€",null,null,null,null,null,null,null,null,null,null,null,null,null,null,null,null,null,null,null,null,null,{"$f":"X16","v":0},null,{"$f":"Z19","v":0}]
[null,null,null,null,null,null,"Staat & Land",null,null,null,null,null,null,null,null,null,null,null,null,null,null,null,null,"Sehenswertes:",null,null,null,null,null,null,null,null,null,null,null,null,null,null,null,null,{"$f":"X26","v":0},null,{"$f":"Z29","v":0}]
[null,null,null,null,null,null,null,null,null,null,null,null,null,null,null,null,null,null,null,null,null,null,null,null,null,null,null,null,null,null,null,null,null,null,null,null,null,null,null,null,{"$f":"X36","v":0},null,{"$f":"Z39","v":0}]
[null,null,"Aufenthaltsdauer:"]
[null,null,"Verpflegungsart:",null,null,null,"Ü / Ü+F / HP / VP / AI",null,null,null,null,null,null,null,null,null,null,null,null,null,null,"Zwischenstopp:"]
[]
["Check in",null,null,null,null,null,null,null,null,null,null,null,null,null,null,null,null,null,null,null,null,null,null,"Öffnungszeiten:",null,null,"Uhr"]
[null,null,null,null,"Datum:",null,"Datum",null,null,{"$f":"TEXT(G19,\"TTTT\")","v":"Datum"},null,null,null,null,null,null,null,null,null,null,null,null,null,"Kosten:",null,null,"€"]
[null,null,null,null,"Uhrzeit:",null,null,null,null,null,null,null,"mögliche Aktivitäten:"]
["Check out",null,null,null,null,null,null,null,null,null,null,null,null,null,null,null,null,null,null,null,null,null,null,"Sehenswertes:"]
[null,null,null,null,"Datum:",null,"Datum",null,null,{"$f":"TEXT(G22,\"TTTT\")","v":"Datum"}]
[null,null,null,null,"Uhrzeit:",null,null,null,null,null,null,null,null,null,null,null,null,null,null,null,null,null,null,"Sehenswertes:"]
[]
[null,null,null,null,null,null,null,null,null,null,null,null,null,null,null,null,null,null,null,null,null,null,null,null,null,null,null,null,null,null,null,null,null,null,null,null,null,null,null,null,"gesamte Tagesausgaben:",null,{"$f":"(AQ10+AQ11+AQ12+AQ13+AQ14+AQ15+AQ16+AQ17+AQ18+AQ19+AQ20+AQ21+AQ22+AQ23)","v":0},"€"]
[null,null,"Übernachtungskosten pro Nacht:",null,null,null,"0,00","€",null,null,null,null,null,null,null,null,null,null,null,null,null,"Zwischenstopp:"]
[]
[null,null,null,null,null,null,null,null,null,null,null,null,null,null,null,null,null,null,null,null,null,null,null,"Öffnungszeiten:",null,null,"Uhr",null,null,null,null,null,null,null,null,null,null,null,null,null,"Gesamtkosten:",null,null,{"$f":"G26+G33+J37+AQ25","v":0},null,"€"]
["zusätzliche Leistungen im Hotel:",null,null,null,null,null,null,null,null,null,null,null,null,null,null,null,null,null,null,null,null,null,null,"Kosten:",null,null,"€"]
["(z.B. Spa & Bar)",null,null,null,null,null,null,null,null,null,null,null,null,null,null,null,null,null,null,null,null,null,null,null,null,null,null,null,null,null,null,null,null,null,null,null,null,null,null,null,"Kosten pro Person:",null,null,{"$f":"AR28/'automatische Reiseübersicht'!F9","v":0},null,"€"]
[null,null,null,null,null,null,null,null,null,null,null,null,null,null,null,null,null,null,null,null,null,null,null,"Sehenswertes:"]
[]
[null,null,null,"Gesamtkosten:",null,null,"0,00","€",null,null,null,null,null,null,null,null,null,null,null,null,null,null,null,"Sehenswertes:"]
[]
[]
["parken:",null,null,null,null,null,null,null,null,null,null,null,null,null,null,null,null,null,null,null,null,"Zwischenstopp:"]
[null,null,null,null,null,null,null,"Kosten:",null,"0,00","€"]
[null,null,null,null,null,null,null,null,null,null,null,null,null,null,null,null,null,null,null,null,null,null,null,"Öffnungszeiten:",null,null,"Uhr"]
[null,null,null,null,null,null,null,null,null,null,null,null,null,null,null,null,null,null,null,null,null,null,null,"Kosten:",null,null,"€"]
["Anmerkung:"]
[null,null,null,null,null,null,null,null,null,null,null,null,null,null,null,null,null,null,null,null,null,null,null,"Sehenswertes:"]
[]
[null,null,null,null,null,null,null,null,null,null,null,null,null,null,null,null,null,null,null,null,null,null,null,"Sehenswertes:"]
[]
[null,null,null,null,null,null,null,null,null,null,null,null,null,null,null,null,null,null,null,null,null,null,null,null,null,null,null,null,null,null,null,null,null,null,null,null,null,null,"finanzielle Ausgaben:",null,null,"abgerechnet:","ja   /   nein",null,"am: "]

{"sheet":"Abreise","index":10,"n_rows":48,"n_cols":19,"rows_kept":48,"cut":false,"hidden":false,"merged":[[5,8,5,9],[8,2,8,6],[32,1,32,2],[26,11,26,12],[28,12,28,13],[29,12,29,13],[30,12,30,13],[31,12,31,13],[30,1,30,2],[18,0,18,1],[18,2,18,6],[20,2,20,3],[40,12,40,13],[40,15,40,16],[0,16,0,18],[1,16,1,18],[0,14,2,15],[0,10,2,13],[33,12,33,13],[6,11,23,17],[32,12,32,13],[0,7,0,9],[1,7,1,9],[0,4,2,6],[0,0,2,3],[38,12,38,13],[34,12,34,13],[35,12,35,13],[13,3,13,6],[21,2,21,3],[23,3,23,6],[10,2,10,3],[11,2,11,3],[6,2,6,3],[15,3,15,6],[25,3,25,6],[8,0,8,1]]}
["     Abreise",null,null,null,null,null,null,"powered by:",null,null,"     Abreise",null,null,null,null,null,"powered by:"]
[null,null,null,null,null,null,null,"ReiseJuwelen.de",null,null,null,null,null,null,null,null,"ReiseJuwelen.de"]
[null,null,null,null,null,null,null,null,"Version: v.0525","Stand: 05/2025",null,null,null,null,null,null,"Version: v.0525",null,"Stand: 05/2025"]
[]
[]
[null,null,null,null,null,null,null,null,"Fahrdauer bis Ziel / Aufenthaltsdauer"]
[null,null,{"$f":"'Hin- und Rückflug'!O7","v":"Datum"},null,null,null,null,null,null,null,null,"Hier ist Platz für Kartenauschnitte der Route(n)"]
[]
["Zwischenstopp:"]
[]
[null,null,"Öffnungszeiten:",null,null,null,"Uhr"]
[null,null,"Kosten:",null,null,null,"€"]
[]
[null,null,"Sehenswertes:"]
[]
[null,null,"Sehenswertes:"]
[]
[]
["Zwischenstopp:"]
[]
[null,null,"Öffnungszeiten:",null,null,null,"Uhr"]
[null,null,"Kosten:",null,null,null,"€"]
[]
[null,null,"Sehenswertes:"]
[]
[null,null,"Sehenswertes:"]
[null,null,null,null,null,null,null,null,null,null,null,"Tagesausgaben:"]
[]
[null,null,null,null,null,null,null,null,null,null,null,null,"Artikelbeschreibung",null,"Betrag [€]","Zahlender","bar / Karte"]
[null,null,null,null,null,null,null,null,null,null,null,null,{"$f":"C9","v":0},null,{"$f":"E12","v":0}]
[null,"Abgabe Mietwagen:",null,null,{"$f":"Mietwagen!G14","v":"Datum"},null,{"$f":"Mietwagen!G17","v":"Uhrzeit"},null,null,null,null,null,{"$f":"C19","v":0},null,{"$f":"E22","v":0}]
[]
[null,"Abflug: ",null,null,{"$f":"'automatische Reiseübersicht'!G16","v":"Datum"},null,{"$f":"'automatische Reiseübersicht'!G17","v":"Abflugszeit"}]
[]
[]
[]
[]
[]
[null,null,null,null,null,null,null,null,null,null,null,null,"gesamte Tagesausgaben:",null,{"$f":"(O30+O31+O32+O33+O34+O35+O36)","v":0},"€"]
[]
[null,null,null,null,null,null,null,null,null,null,null,null,"Kosten pro Person:",null,null,{"$f":"O39/'automatische Reiseübersicht'!F9","v":0},null,"€"]
[]
[]
[]
[]
[]
[]
[null,null,null,null,null,null,null,null,null,null,"finanzielle Ausgaben:",null,null,"abgerechnet:","ja   /   nein",null,"am: "]

{"sheet":"Gesamtkosten","index":11,"n_rows":45,"n_cols":19,"rows_kept":45,"cut":false,"hidden":false,"merged":[[17,1,17,3],[19,1,19,2],[0,0,2,3],[0,4,2,6],[5,1,5,3],[7,1,7,2],[8,6,8,7],[8,1,8,2],[11,1,11,3],[13,1,13,2],[14,1,14,2],[0,7,0,9],[1,7,1,9],[2,8,2,9],[5,6,5,8],[7,6,7,7],[20,6,20,7],[20,1,20,2],[23,1,23,3],[25,1,25,2],[26,1,26,2],[5,11,5,13],[35,6,35,8],[37,6,37,7],[38,6,38,7],[41,6,41,8],[23,6,23,8],[25,6,25,7],[26,6,26,7],[29,6,29,8],[31,6,31,7],[32,6,32,7],[11,6,11,8],[13,6,13,7],[14,6,14,7],[17,6,17,8],[19,6,19,7],[0,10,2,13],[0,14,2,16],[0,17,0,19],[1,17,1,19],[2,18,2,19],[29,11,29,13],[7,11,7,12],[8,11,8,12],[11,11,11,13],[13,11,13,12],[14,11,14,12],[17,11,17,13],[19,11,19,12],[20,11,20,12],[23,11,23,13],[25,11,25,12],[26,11,26,12],[31,16,31,17],[43,11,43,12],[44,11,44,12],[5,16,5,18],[7,16,7,17],[8,16,8,17],[11,16,11,18],[13,16,13,17],[14,16,14,17],[17,16,17,18],[19,16,19,17],[31,11,31,12],[32,11,32,12],[35,11,35,13],[37,11,37,12],[38,11,38,12],[20,16,20,17],[23,16,23,18],[25,16,25,17],[26,16,26,17],[29,16,29,18],[44,16,44,17],[34,1,34,3],[36,1,36,2],[37,1,37,2],[32,16,32,17],[35,16,35,18],[37,16,37,17],[38,16,38,17],[41,16,41,18],[43,16,43,17],[41,11,41,13],[43,6,43,7],[44,6,44,7]]}
["Gesamtausgaben",null,null,null,null,null,null,"powered by:",null,null,"Gesamtausgaben",null,null,null,null,null,null,"powered by:"]
[null,null,null,null,null,null,null,"ReiseJuwelen.de",null,null,null,null,null,null,null,null,null,"ReiseJuwelen.de"]
[null,null,null,null,null,null,null,"Version: v.0525","Stand: 05/2025",null,null,null,null,null,null,null,null,"Version: v.0224","Stand: 02/2024"]
[]
[]
[null,"Flughafentransfer",null,null,null,null,"Kosten Tagesplanung",null,null,null,null,"Kosten Tagesplanung",null,null,null,null,"Kosten Tagesplanung"]
[]
[null,"Gesamtkosten [€]:",null,{"$f":"'Flughafentransfer zu Hause'!F21+'Flughafentransfer zu Hause'!F34+'Flughafentransfer zu Hause'!F47","v":0},null,null,"Gesamtkosten [€]:",null,null,null,null,"Gesamtkosten [€]:",null,null,null,null,"Gesamtkosten [€]:"]
[null,"Kosten pro Person [€]:",null,{"$f":"D8/'automatische Reiseübersicht'!$F$9","v":0},null,null,"Kosten pro Person [€]:",null,{"$f":"I8/'automatische Reiseübersicht'!$F$9","v":0},null,null,"Kosten pro Person [€]:",null,{"$f":"N8/'automatische Reiseübersicht'!$F$9","v":0},null,null,"Kosten pro Person [€]:",null,{"$f":"S8/'automatische Reiseübersicht'!$F$9","v":0}]
[]
[]
[null,"Flüge",null,null,null,null,"Kosten Tagesplanung",null,null,null,null,"Kosten Tagesplanung",null,null,null,null,"Kosten Tagesplanung"]
[]
[null,"Gesamtkosten [€]:",null,{"$f":"'Hin- und Rückflug'!G50","v":0},null,null,"Gesamtkosten [€]:",null,null,null,null,"Gesamtkosten [€]:",null,null,null,null,"Gesamtkosten [€]:"]
[null,"Kosten pro Person [€]:",null,{"$f":"D14/'automatische Reiseübersicht'!$F$9","v":0},null,null,"Kosten pro Person [€]:",null,{"$f":"I14/'automatische Reiseübersicht'!$F$9","v":0},null,null,"Kosten pro Person [€]:",null,{"$f":"N14/'automatische Reiseübersicht'!$F$9","v":0},null,null,"Kosten pro Person [€]:",null,{"$f":"S14/'automatische Reiseübersicht'!$F$9","v":0}]
[]
[]
[null,"Mobilität am Urlaubsort",null,null,null,null,"Kosten Tagesplanung",null,null,null,null,"Kosten Tagesplanung",null,null,null,null,"Kosten Tagesplanung"]
[]
[null,"Gesamtkosten [€]:",null,{"$f":"'Mobilität am Urlaubsort'!G19+'Mobilität am Urlaubsort'!G35+'Mobilität am Urlaubsort'!G49","v":0},null,null,"Gesamtkosten [€]:",null,null,null,null,"Gesamtkosten [€]:",null,null,null,null,"Gesamtkosten [€]:"]
[null,"Kosten pro Person [€]:",null,{"$f":"D20/'automatische Reiseübersicht'!$F$9","v":0},null,null,"Kosten pro Person [€]:",null,{"$f":"I20/'automatische Reiseübersicht'!$F$9","v":0},null,null,"Kosten pro Person [€]:",null,{"$f":"N20/'automatische Reiseübersicht'!$F$9","v":0},null,null,"Kosten pro Person [€]:",null,{"$f":"S20/'automatische Reiseübersicht'!$F$9","v":0}]
[]
[]
[null,"Mietwagen",null,null,null,null,"Kosten Tagesplanung",null,null,null,null,"Kosten Tagesplanung",null,null,null,null,"Kosten Tagesplanung"]
[]
[null,"Gesamtkosten [€]:",null,{"$f":"Mietwagen!G37","v":"0,00"},null,null,"Gesamtkosten [€]:",null,null,null,null,"Gesamtkosten [€]:",null,null,null,null,"Gesamtkosten [€]:"]
[null,"Kosten pro Person [€]:",null,{"$f":"D26/'automatische Reiseübersicht'!$F$9","v":0},null,null,"Kosten pro Person [€]:",null,{"$f":"I26/'automatische Reiseübersicht'!$F$9","v":0},null,null,"Kosten pro Person [€]:",null,{"$f":"N26/'automatische Reiseübersicht'!$F$9","v":0},null,null,"Kosten pro Person [€]:",null,{"$f":"S26/'automatische Reiseübersicht'!$F$9","v":0}]
[]
[]
[null,null,null,null,null,null,"Kosten Tagesplanung",null,null,null,null,"Kosten Tagesplanung",null,null,null,null,"Kosten Tagesplanung"]
[]
[null,null,null,null,null,null,"Gesamtkosten [€]:",null,null,null,null,"Gesamtkosten [€]:",null,null,null,null,"Gesamtkosten [€]:"]
[null,null,null,null,null,null,"Kosten pro Person [€]:",null,{"$f":"I32/'automatische Reiseübersicht'!$F$9","v":0},null,null,"Kosten pro Person [€]:",null,{"$f":"N32/'automatische Reiseübersicht'!$F$9","v":0},null,null,"Kosten pro Person [€]:",null,{"$f":"S32/'automatische Reiseübersicht'!$F$9","v":0}]
[]
[null,"Gesamtkosten Reise"]
[null,null,null,null,null,null,"Kosten Tagesplanung",null,null,null,null,"Kosten Tagesplanung",null,null,null,null,"Kosten Tagesplanung"]
[null,"Gesamtkosten [€]:",null,{"$f":"D8+D14+D20+D26+I8+I14+I20+I26+I32+I38+I44+N8+N14+N20+N26+N32+N38+S8+S14+S20+S26+S32+S38+S44+N44","v":0}]
[null,"Kosten pro Person [€]:",null,{"$f":"D37/'automatische Reiseübersicht'!$F$9","v":0},null,null,"Gesamtkosten [€]:",null,null,null,null,"Gesamtkosten [€]:",null,null,null,null,"Gesamtkosten [€]:"]
[null,null,null,null,null,null,"Kosten pro Person [€]:",null,{"$f":"I38/'automatische Reiseübersicht'!$F$9","v":0},null,null,"Kosten pro Person [€]:",null,{"$f":"N38/'automatische Reiseübersicht'!$F$9","v":0},null,null,"Kosten pro Person [€]:",null,{"$f":"S38/'automatische Reiseübersicht'!$F$9","v":0}]
[]
[]
[null,null,null,null,null,null,"Kosten Tagesplanung",null,null,null,null,"Kosten Tagesplanung",null,null,null,null,"Kosten Tagesplanung"]
[]
[null,null,null,null,null,null,"Gesamtkosten [€]:",null,null,null,null,"Gesamtkosten [€]:",null,null,null,null,"Gesamtkosten [€]:"]
[null,null,null,null,null,null,"Kosten pro Person [€]:",null,{"$f":"I44/'automatische Reiseübersicht'!$F$9","v":0},null,null,"Kosten pro Person [€]:",null,{"$f":"N44/'automatische Reiseübersicht'!$F$9","v":0},null,null,"Kosten pro Person [€]:",null,{"$f":"S44/'automatische Reiseübersicht'!$F$9","v":0}]